bitfinex-derivatives/quotes_BTCF0:USTF0_20210108
["timestamp","ask_amount","ask_price","bid_price","bid_amount"]
[1610072062848,0.13632608,38220.0,38219.0,0.13632608]
[1610072063250,0.13632608,38220.0,38195.0,4.2652]
[1610072063449,0.13632608,38220.0,38193.0,0.11256]
[1610072063650,0.13632608,38220.0,38187.0,0.32011211]
[1610072064852,3.49453,38222.0,38199.0,0.13632608]
[1610072065652,3.49453,38222.0,38187.0,0.32011211]
[1610072065853,0.08333,38222.0,38187.0,0.32011211]
[1610072066053,3.1272,38208.0,38187.0,0.32011211]
[1610072066456,3.26402,38208.0,38187.0,0.32011211]
[1610072066855,0.13632608,38188.0,38187.0,0.32011211]
[1610072067055,0.27245608,38188.0,38187.0,0.32011211]
[1610072068257,0.27245608,38188.0,38176.0,0.13632608]
[1610072068857,0.13632608,38177.0,38176.0,0.13632608]
[1610072069058,0.25013608,38177.0,38176.0,0.13632608]
[1610072069258,0.25013608,38177.0,38131.0,2.3299046]
[1610072069457,4.52243608,38177.0,38143.0,3.591]
[1610072069658,0.25013608,38177.0,38140.0,0.13552]
[1610072069857,3.7914,38168.0,38140.0,0.13552]
[1610072070257,3.91434,38168.0,38140.0,0.13552]
[1610072070457,0.12294,38168.0,38140.0,0.13552]
[1610072070659,3.8785,38163.0,38140.0,0.13552]
[1610072070859,3.8785,38163.0,38122.0,3.8559]
[1610072070860,3.8785,38163.0,38148.0,0.13632608]
[1610072071460,0.12294,38168.0,38148.0,0.13632608]
[1610072072862,0.12294,38168.0,38157.0,0.13632608]
[1610072074863,0.13632608,38158.0,38157.0,0.13632608]
[1610072075064,0.23074608,38158.0,38157.0,0.13632608]
[1610072075264,0.23074608,38158.0,38130.0,2.9652]
[1610072075463,0.23074608,38158.0,38120.0,0.08635]
[1610072075663,3.5685,38157.0,38120.0,0.08635]
[1610072075865,0.23074608,38158.0,38120.0,0.08635]
[1610072076063,0.23074608,38158.0,38112.0,0.12232]
[1610072076064,3.1465,38141.0,38112.0,0.12232]
[1610072076264,3.26689,38141.0,38099.0,2.31629618]
[1610072076464,3.26689,38141.0,38097.0,3.8219]
[1610072076867,3.26689,38141.0,38119.0,0.13632608]
[1610072078067,0.12039,38141.0,38119.0,0.13632608]
[1610072078768,0.12039,38141.0,38114.0,3.3944]
[1610072078769,0.25671608,38141.0,38140.0,0.13632608]
[1610072080268,0.12039,38141.0,38140.0,0.13632608]
[1610072081471,0.13632608,38153.0,38140.0,0.13632608]
[1610072082574,0.4557,38152.0,38119.0,3.5291]
[1610072082773,0.09442,38158.0,38121.0,0.13632608]
[1610072082975,3.07,38148.0,38121.0,0.13632608]
[1610072083173,3.16581,38148.0,38121.0,0.13632608]
[1610072084777,0.13632608,38122.0,38121.0,0.13632608]
[1610072084976,0.26574608,38122.0,38121.0,0.13632608]
[1610072085378,0.26574608,38122.0,38091.0,4.0809]
[1610072085777,4.2248,38120.0,38073.0,0.2776]
[1610072085977,0.26574608,38122.0,38058.0,0.2838]
[1610072086377,0.26574608,38122.0,38056.0,3.8132]
[1610072086778,0.12942,38122.0,38095.0,0.13632608]
[1610072087580,0.12942,38122.0,38077.0,0.12821]
[1610072088180,0.12942,38122.0,38051.0,0.1569]
[1610072088380,3.388,38098.0,38050.0,4.3877]
[1610072088778,3.413,38089.0,38076.0,0.13632608]
[1610072088980,3.2978,38104.0,38076.0,0.13632608]
[1610072089177,3.38654,38104.0,38076.0,0.13632608]
[1610072089579,0.08874,38104.0,38076.0,0.13632608]
[1610072090783,0.08874,38104.0,38098.0,0.13632608]
[1610072090981,0.08874,38104.0,38065.0,3.7694]
[1610072092783,0.08874,38104.0,38103.0,0.13632608]
[1610072094185,0.12942,38122.0,38103.0,3.75082608]
[1610072094388,3.523,38160.0,38103.0,3.75082608]
[1610072094591,3.523,38160.0,38103.0,3.87871608]
[1610072094785,0.13632608,38144.0,38143.0,0.13632608]
[1610072094983,0.65542608,38144.0,38103.0,3.74239]
[1610072095184,0.26640608,38144.0,38103.0,0.12789]
[1610072095387,4.52130608,38144.0,38103.0,0.12789]
[1610072096787,4.38498,38144.0,38126.0,0.13632608]
[1610072097187,4.38498,38144.0,38103.0,0.12789]
[1610072097788,4.38498,38144.0,38093.0,0.08637]
[1610072097789,0.13008,38144.0,38093.0,0.08637]
[1610072097989,4.3054,38124.0,38077.0,0.09753]
[1610072098591,4.3054,38124.0,38074.0,3.1046]
[1610072098791,4.3054,38124.0,38096.0,0.13632608]
[1610072099390,4.3054,38124.0,38074.0,3.1046]
[1610072099591,4.3054,38124.0,38069.0,0.11135]
[1610072099592,4.3697,38110.0,38069.0,0.11135]
[1610072099790,4.49081,38110.0,38054.0,4.3543]
[1610072100392,0.274,38109.0,38054.0,4.3543]
[1610072100791,0.274,38109.0,38090.0,0.13632608]
[1610072102895,0.274,38109.0,38100.0,0.13632608]
[1610072103095,0.6978,38109.0,38100.0,0.13632608]
[1610072103998,0.4238,38109.0,38100.0,0.13632608]
[1610072104399,0.4238,38109.0,38087.0,0.10413]
[1610072104998,0.4238,38109.0,38108.0,0.13632608]
[1610072106801,0.12111,38110.0,38108.0,0.13632608]
[1610072107002,0.13632608,38121.0,38108.0,0.13632608]
[1610072107401,0.1023,38124.0,38108.0,0.13632608]
[1610072107603,3.3358,38134.0,38108.0,0.13632608]
[1610072109003,3.3358,38134.0,38124.0,0.13632608]
[1610072109504,0.2756,38143.0,38124.0,0.13632608]
[1610072110705,3.3349,38172.0,38124.0,0.13632608]
[1610072110909,0.13632608,38144.0,38143.0,0.13632608]
[1610072112711,3.1417,38170.0,38143.0,0.13632608]
[1610072112909,0.2791,38171.0,38150.0,0.13632608]
[1610072113111,4.1585,38160.0,38125.0,0.10615]
[1610072113310,0.2791,38171.0,38125.0,0.10615]
[1610072113710,3.39498,38155.0,38125.0,0.10615]
[1610072114110,3.39498,38155.0,38116.0,0.09524]
[1610072114111,3.39498,38155.0,38116.0,0.04542753]
[1610072115011,3.39498,38155.0,38128.0,0.13632608]
[1610072116515,0.10748,38155.0,38128.0,0.13632608]
[1610072116917,0.10748,38155.0,38143.0,0.13632608]
[1610072117918,0.10748,38155.0,38121.0,3.2565]
[1610072118820,0.1569,38165.0,38121.0,3.2565]
[1610072119020,0.1569,38165.0,38135.0,0.13632608]
[1610072119219,4.3742,38166.0,38135.0,0.13632608]
[1610072121025,4.3742,38166.0,38156.0,0.13632608]
[1610072121225,0.2791,38171.0,38156.0,0.13632608]
[1610072122326,0.2791,38171.0,38127.0,0.1344]
[1610072122526,4.1287,38167.0,38127.0,0.1344]
[1610072122928,4.1287,38167.0,38148.0,0.13632608]
[1610072123328,4.1287,38167.0,38127.0,0.1344]
[1610072124833,4.1287,38167.0,38118.0,0.10882]
[1610072125032,4.1287,38167.0,38146.0,0.13632608]
[1610072125432,0.40543,38171.0,38146.0,0.13632608]
[1610072125832,3.1355,38169.0,38146.0,0.13632608]
[1610072127133,3.1355,38169.0,38158.0,0.13632608]
[1610072128135,3.1355,38169.0,38130.0,3.845]
[1610072129136,3.1355,38169.0,38155.0,0.13632608]
[1610072131137,0.12633,38171.0,38168.0,0.13632608]
[1610072131337,0.13632608,38174.0,38168.0,0.13632608]
[1610072132437,3.8272,38192.0,38168.0,0.13632608]
[1610072132639,0.2796,38197.0,38168.0,0.13632608]
[1610072133037,0.13632608,38189.0,38188.0,0.13632608]
[1610072133438,0.22627608,38189.0,38188.0,0.13632608]
[1610072133838,0.22627608,38189.0,38161.0,3.3995]
[1610072135041,0.22627608,38189.0,38188.0,0.13632608]
[1610072136345,0.08995,38189.0,38188.0,0.13632608]
[1610072136744,3.5509,38214.0,38188.0,0.13632608]
[1610072137046,3.5509,38214.0,38195.0,0.13632608]
[1610072137245,3.5509,38214.0,38174.0,0.09708]
[1610072137446,3.67807,38214.0,38174.0,0.09708]
[1610072137647,3.67807,38214.0,38161.0,3.3995]
[1610072137848,0.12717,38214.0,38151.0,0.13038]
[1610072138048,3.4525,38192.0,38151.0,0.13038]
[1610072138251,3.56787,38192.0,38139.0,3.3788]
[1610072139050,3.56787,38192.0,38162.0,0.13632608]
[1610072141049,0.13632608,38163.0,38162.0,0.13632608]
[1610072141448,0.13632608,38163.0,38148.0,0.11543]
[1610072141652,0.13632608,38163.0,38138.0,0.11516]
[1610072141849,0.13632608,38163.0,38130.0,3.7562]
[1610072143051,0.13632608,38163.0,38162.0,0.13632608]
[1610072143452,0.08442,38168.0,38162.0,0.13632608]
[1610072145055,0.08442,38168.0,38167.0,0.13632608]
[1610072146457,0.31824319,38189.0,38167.0,0.13632608]
[1610072147057,0.31824319,38189.0,38188.0,0.13632608]
[1610072148758,0.31824319,38189.0,38169.0,0.08957]
[1610072149161,0.13632608,38179.0,38178.0,0.13632608]
[1610072149361,0.23758608,38179.0,38178.0,0.13632608]
[1610072149561,0.23758608,38179.0,38157.0,0.09018]
[1610072151065,0.10126,38179.0,38176.0,0.13632608]
[1610072151464,0.10126,38179.0,38157.0,0.09018]
[1610072151664,0.10126,38179.0,38149.0,3.33425]
[1610072152665,0.10126,38179.0,38149.0,0.10135]
[1610072152867,3.39,38176.0,38139.0,0.12161]
[1610072153065,0.13632608,38140.0,38124.0,2.3603123]
[1610072153269,3.548,38125.0,38120.0,2.3609303]
[1610072153466,1.5,38124.0,38120.0,1.4878303]
[1610072153666,3.3431,38121.0,38097.0,2.36180783]
[1610072153865,1.5,38120.0,38097.0,2.36180783]
[1610072154067,0.0847,38125.0,38067.0,2.52055886]
[1610072154265,3.3006,38107.0,38067.0,2.52055886]
[1610072154465,0.13197,38107.0,38067.0,2.52055886]
[1610072154667,0.13197,38107.0,38054.0,2.52161348]
[1610072154866,3.0491,38084.0,38054.0,2.52161348]
[1610072155068,0.11101,38084.0,38074.0,0.13632608]
[1610072155266,3.7562,38075.0,38074.0,0.13632608]
[1610072155466,3.7562,38075.0,38046.0,0.11174]
[1610072155666,3.88017,38075.0,38047.0,2.52036775]
[1610072156067,0.12397,38075.0,38042.0,2.52035491]
[1610072156367,0.12397,38075.0,38037.0,2.63224284]
[1610072156567,0.12397,38075.0,38037.0,2.51835284]
[1610072156767,0.12397,38075.0,38033.0,2.67574989]
[1610072156768,0.12397,38075.0,38033.0,2.51841256]
[1610072157167,0.12397,38075.0,38066.0,0.13632608]
[1610072157366,0.589,38072.0,38034.0,2.51852381]
[1610072157568,0.589,38072.0,38030.0,2.51639544]
[1610072157968,0.12397,38075.0,38028.0,2.5168012]
[1610072157969,3.46,38062.0,38028.0,2.5168012]
[1610072158169,0.12397,38075.0,38028.0,2.5168012]
[1610072158370,3.0512,38054.0,38028.0,2.5168012]
[1610072158571,3.14474,38054.0,38022.0,2.51462946]
[1610072158970,0.09354,38054.0,38018.0,2.51455569]
[1610072159169,0.09354,38054.0,38053.0,0.13632608]
[1610072159371,0.12397,38075.0,38053.0,0.13632608]
[1610072159570,0.12397,38075.0,38056.0,4.2086]
[1610072159769,0.12397,38075.0,38056.0,4.29502]
[1610072160172,0.11101,38084.0,38056.0,0.08642]
[1610072160372,0.00706303,38138.0,38056.0,0.08642]
[1610072160571,3.7288,38101.0,38056.0,0.08642]
[1610072160971,3.83687,38101.0,38056.0,0.08642]
[1610072161173,3.83687,38101.0,38082.0,0.13632608]
[1610072161372,3.83687,38101.0,38056.0,0.08642]
[1610072162173,0.10807,38101.0,38056.0,0.08642]
[1610072162373,3.6974,38098.0,38056.0,0.08642]
[1610072162975,3.6974,38098.0,38046.0,0.1325]
[1610072163176,0.13632608,38069.0,38051.0,0.13632608]
[1610072163375,0.25074608,38069.0,38051.0,0.13632608]
[1610072163576,3.2725,38067.0,38027.0,2.50980184]
[1610072163978,3.2725,38067.0,38026.0,2.35323924]
[1610072164376,3.2725,38067.0,38021.0,2.35329742]
[1610072164977,3.2725,38067.0,38019.0,3.6336]
[1610072165177,0.13632608,38054.0,38044.0,0.13632608]
[1610072165377,0.27277608,38054.0,38044.0,0.13632608]
[1610072165978,0.27277608,38054.0,38017.0,0.13413]
[1610072166178,0.27277608,38054.0,38006.0,2.34979433]
[1610072166179,3.6744,38048.0,38006.0,2.34979433]
[1610072166580,3.6744,38048.0,38000.0,25.3621032]
[1610072167181,0.13632608,38026.0,38017.0,0.13632608]
[1610072167380,0.22648608,38026.0,38000.0,23.015]
[1610072167582,3.0441,38024.0,38000.0,23.015]
[1610072167980,0.09016,38026.0,38000.0,23.015]
[1610072169182,0.09016,38026.0,38025.0,0.13632608]
[1610072169985,0.09016,38026.0,38000.0,23.015]
[1610072171185,0.09016,38026.0,38014.0,0.13632608]
[1610072172484,3.5124,38029.0,38014.0,0.13632608]
[1610072172886,0.13645,38054.0,38014.0,0.13632608]
[1610072173087,0.13632608,38015.0,38014.0,0.13632608]
[1610072173288,0.22093608,38015.0,38014.0,0.13632608]
[1610072174088,0.22093608,38015.0,38000.0,23.015]
[1610072174287,3.47923608,38015.0,38000.0,23.015]
[1610072174488,0.22093608,38015.0,38000.0,23.015]
[1610072175089,0.13632608,38001.0,38000.0,23.015]
[1610072175289,0.12268,38001.0,38000.0,23.015]
[1610072176592,0.72698,38001.0,38000.0,23.015]
[1610072176791,0.12268,38001.0,38000.0,23.015]
[1610072177191,0.25900608,38001.0,38000.0,22.2064]
[1610072177593,3.98050608,38001.0,38000.0,22.2064]
[1610072178593,4.26716118,38001.0,38000.0,22.2064]
[1610072179394,0.54566118,38001.0,38000.0,22.2064]
[1610072181197,0.54566118,38001.0,38000.0,22.34272608]
[1610072181596,0.54566118,38001.0,38000.0,22.2064]
[1610072181798,0.54566118,38001.0,38000.0,21.7536]
[1610072183199,0.54566118,38001.0,38000.0,21.32537]
[1610072183800,0.54566118,38001.0,38000.0,20.96517]
[1610072184301,0.54566118,38001.0,38000.0,20.49663]
[1610072184701,0.54566118,38001.0,38000.0,19.90619]
[1610072184901,0.54566118,38001.0,38000.0,19.44247]
[1610072185102,0.54566118,38001.0,38000.0,17.23051]
[1610072185301,0.54566118,38001.0,38000.0,15.88393]
[1610072185704,0.54566118,38001.0,38000.0,15.88231945]
[1610072185905,0.54566118,38001.0,38000.0,15.62421945]
[1610072186106,4.49296118,38001.0,38000.0,15.62421945]
[1610072187307,0.54566118,38001.0,38000.0,15.62421945]
[1610072188906,0.11567,38001.0,38000.0,15.62421945]
[1610072189308,0.25199608,38001.0,38000.0,15.62421945]
[1610072192309,0.25199608,38001.0,38000.0,15.14431945]
[1610072195911,0.25199608,38001.0,38000.0,15.14270867]
[1610072196512,0.25199608,38001.0,38000.0,14.74765063]
[1610072196710,0.25199608,38001.0,38000.0,14.58652674]
[1610072206022,3.4586,38020.0,38000.0,14.58652674]
[1610072207223,0.13632608,38001.0,38000.0,14.58652674]
[1610072207424,0.21562608,38001.0,38000.0,14.58652674]
[1610072208024,0.13632608,38001.0,38000.0,14.58652674]
[1610072208824,0.13632608,38001.0,38000.0,14.58491572]
[1610072212630,0.71082608,38001.0,38000.0,14.58491572]
[1610072212830,0.13632608,38001.0,38000.0,14.58491572]
[1610072217935,0.13632608,38001.0,38000.0,14.50436022]
[1610072219735,0.13632608,38001.0,38000.0,14.50274939]
[1610072225143,0.01524608,38005.0,38000.0,14.50274939]
[1610072225341,0.13632608,38001.0,38000.0,14.50274939]
[1610072226341,0.10433,38017.0,38000.0,14.50274939]
[1610072227342,0.13632608,38030.0,38016.0,0.13632608]
[1610072227543,0.13632608,38030.0,38016.0,0.23312608]
[1610072228744,0.16373987,38053.0,38016.0,0.23312608]
[1610072229144,0.1569,38053.0,38016.0,0.23312608]
[1610072229343,0.13645,38054.0,38016.0,0.0968]
[1610072229544,0.00687929,38061.0,38016.0,0.0968]
[1610072229944,0.0068797,38060.0,38016.0,0.0968]
[1610072230346,0.00687555,38059.0,38016.0,0.0968]
[1610072230745,0.00688344,38058.0,38016.0,0.0968]
[1610072231148,0.12930504,38060.0,38016.0,0.0968]
[1610072231347,0.12930504,38060.0,38038.0,0.13632608]
[1610072231547,0.11566669,38060.0,38038.0,0.27231608]
[1610072232351,0.10878,38060.0,38038.0,0.27231608]
[1610072232753,0.11567806,38060.0,38038.0,0.27231608]
[1610072232954,0.11567806,38060.0,38038.0,0.13599]
[1610072233152,0.12933657,38060.0,38038.0,0.13599]
[1610072233353,0.13632608,38039.0,38038.0,0.27231608]
[1610072233553,0.13632608,38039.0,38038.0,0.13599]
[1610072234355,0.13632608,38039.0,38016.0,0.0968]
[1610072234556,0.13632608,38039.0,38000.0,14.50274939]
[1610072235357,3.24466,38041.0,38008.0,0.13632608]
[1610072235556,3.24466,38041.0,38008.0,0.27136608]
[1610072235956,3.24466,38041.0,38008.0,0.13504]
[1610072236357,0.00686432,38040.0,38008.0,0.13504]
[1610072236757,0.02044563,38036.0,38000.0,14.50274939]
[1610072237156,0.00685401,38032.0,38000.0,14.50274939]
[1610072237356,0.13632608,38001.0,38000.0,14.50274939]
[1610072238558,3.22842608,38001.0,38000.0,14.50274939]
[1610072240159,0.13632608,38001.0,38000.0,14.50274939]
[1610072240960,1.63632608,38001.0,38000.0,14.50274939]
[1610072241361,1.63632608,38001.0,38000.0,14.50113826]
[1610072241560,1.63632608,38001.0,38000.0,13.81483826]
[1610072241561,2.03739731,38001.0,38000.0,13.81483826]
[1610072241961,2.90480553,38001.0,38000.0,13.73427156]
[1610072242862,1.40480553,38001.0,38000.0,13.73427156]
[1610072243864,0.13632608,38001.0,38000.0,13.73427156]
[1610072246464,1.63632608,38001.0,38000.0,13.73427156]
[1610072246666,1.65666419,38001.0,38000.0,13.73427156]
[1610072247065,2.03760508,38001.0,38000.0,13.73427156]
[1610072247464,0.53760508,38001.0,38000.0,13.73427156]
[1610072248467,2.03760508,38001.0,38000.0,13.73427156]
[1610072249068,2.90592164,38001.0,38000.0,13.73427156]
[1610072249467,2.90592164,38001.0,38000.0,13.71607156]
[1610072249667,2.90592164,38001.0,38000.0,13.11057156]
[1610072249869,4.15997356,38001.0,38000.0,12.94939391]
[1610072250669,4.15997356,38001.0,38000.0,12.64001614]
[1610072250869,4.15997356,38001.0,38000.0,12.10885614]
[1610072251070,4.15997356,38001.0,38000.0,11.61473614]
[1610072251468,4.15997356,38001.0,38000.0,11.6131243]
[1610072251669,4.15997356,38001.0,38000.0,11.2929243]
[1610072251870,4.15997356,38001.0,38000.0,10.9090043]
[1610072252070,4.15997356,38001.0,38000.0,10.8572043]
[1610072252271,4.15997356,38001.0,38000.0,10.7766082]
[1610072252470,4.15997356,38001.0,38000.0,8.6903082]
[1610072252670,4.15997356,38001.0,38000.0,7.9900182]
[1610072252873,4.15997356,38001.0,38000.0,6.0924582]
[1610072253072,5.83324498,38001.0,38000.0,5.56797521]
[1610072253371,7.00051567,38001.0,38000.0,4.88314521]
[1610072253574,8.32289358,38001.0,38000.0,3.81860567]
[1610072253771,8.32289358,38001.0,38000.0,3.32905567]
[1610072253971,9.77701262,38001.0,38000.0,3.07445567]
[1610072254171,9.77701262,38001.0,38000.0,1.19126567]
[1610072254372,9.85481262,38001.0,38000.0,0.90756567]
[1610072254574,13.14479842,38001.0,38000.0,0.78776567]
[1610072254772,13.14479842,38001.0,38000.0,0.21570567]
[1610072254974,3.5268,37947.0,37941.0,0.12539]
[1610072255172,0.09819,37966.0,37941.0,0.12539]
[1610072255373,4.54922608,37942.0,37941.0,0.12539]
[1610072255772,4.54922608,37942.0,37941.0,0.00026912]
[1610072256073,6.04922608,37942.0,37941.0,0.00026912]
[1610072256677,0.13632608,37942.0,37941.0,0.00026912]
[1610072261181,4.143,37951.0,37941.0,0.00026912]
[1610072261380,0.13632608,37942.0,37941.0,0.00026912]
[1610072261782,0.13632608,37942.0,37940.0,0.09942653]
[1610072261981,0.13632608,37942.0,37941.0,0.00026909]
[1610072264582,0.13632608,37942.0,37940.0,0.09942653]
[1610072265885,0.13632608,37942.0,37931.0,0.12695]
[1610072266082,0.13632608,37942.0,37893.0,0.13632608]
[1610072266485,0.13632608,37942.0,37895.0,0.02125238]
[1610072266683,0.13632608,37942.0,37895.0,0.13652238]
[1610072267084,0.13632608,37942.0,37896.0,0.0212517]
[1610072267485,0.13632608,37897.0,37896.0,0.0212517]
[1610072267884,3.0504,37938.0,37896.0,0.00026914]
[1610072268087,3.0504,37938.0,37896.0,0.02125678]
[1610072269484,0.13632608,37897.0,37896.0,0.02125678]
[1610072269883,3.0504,37938.0,37896.0,0.02125678]
[1610072271492,3.0504,37938.0,37905.0,0.13632608]
[1610072271689,3.0504,37938.0,37905.0,0.24697608]
[1610072271889,3.0504,37938.0,37906.0,0.02125428]
[1610072272088,1.58774,37957.0,37906.0,0.02125428]
[1610072272089,0.08774,37957.0,37906.0,0.02125428]
[1610072272288,3.4219,37951.0,37906.0,0.02125428]
[1610072272490,0.08774,37957.0,37906.0,0.02125428]
[1610072272889,0.00662091,37962.0,37906.0,0.02125428]
[1610072273290,0.00663442,37965.0,37906.0,0.02125428]
[1610072273489,0.00663442,37965.0,37917.0,0.13632608]
[1610072273691,0.0197819,37965.0,37917.0,0.13632608]
[1610072273890,0.0197819,37965.0,37917.0,0.1256]
[1610072274092,1.5,37965.0,37918.0,0.00026914]
[1610072274491,0.08543908,37964.0,37918.0,0.00026914]
[1610072274691,3.74825,37949.0,37918.0,0.00026914]
[1610072274891,0.12985,37949.0,37918.0,0.00026914]
[1610072275091,3.5113,37941.0,37918.0,0.02125316]
[1610072275290,1.5,37940.0,37918.0,0.02125316]
[1610072275492,0.13632608,37919.0,37918.0,0.02125316]
[1610072276292,0.13632608,37919.0,37918.0,0.00026914]
[1610072278294,0.13632608,37919.0,37918.0,0.02126082]
[1610072278694,0.13632608,37919.0,37917.0,0.12398539]
[1610072278994,0.13632608,37919.0,37905.0,0.11065]
[1610072279195,0.13632608,37919.0,37895.0,0.11527]
[1610072279394,0.13632608,37919.0,37875.0,0.12174001]
[1610072279593,0.0982,37932.0,37896.0,0.02126127]
[1610072279794,4.4107,37929.0,37892.0,0.13632608]
[1610072280094,4.4107,37929.0,37897.0,0.02126225]
[1610072280495,4.4107,37929.0,37897.0,0.11375]
[1610072280695,4.4107,37929.0,37898.0,0.02126245]
[1610072281294,0.0982,37932.0,37898.0,0.02126245]
[1610072281496,0.13632608,37899.0,37898.0,0.02126245]
[1610072281895,0.73352608,37899.0,37898.0,0.02126245]
[1610072283298,0.13632608,37899.0,37898.0,0.02126245]
[1610072283499,0.13632608,37908.0,37898.0,0.15758853]
[1610072283900,0.13632608,37908.0,37899.0,0.02126254]
[1610072284301,0.0982,37932.0,37899.0,0.02126254]
[1610072284498,0.12985,37949.0,37899.0,0.02126254]
[1610072284898,3.7709,37952.0,37899.0,0.02126254]
[1610072285499,3.7709,37952.0,37922.0,0.13632608]
[1610072285698,3.7709,37952.0,37922.0,0.10261]
[1610072286100,3.7709,37952.0,37923.0,0.02125428]
[1610072287500,0.13632608,37924.0,37923.0,0.02125428]
[1610072289505,0.13632608,37924.0,37922.0,0.08135572]
[1610072289703,3.5045,37923.0,37897.0,0.11375]
[1610072289903,3.5045,37923.0,37882.0,0.13632608]
[1610072290102,3.5045,37923.0,37898.0,0.02126495]
[1610072290302,3.5045,37923.0,37898.0,0.11811931]
[1610072290502,3.5045,37923.0,37898.0,0.11785]
[1610072290702,0.0781,37922.0,37899.0,0.02126639]
[1610072291103,0.16536,37922.0,37899.0,0.02126639]
[1610072291502,0.13632608,37900.0,37899.0,0.02126639]
[1610072292105,3.76562608,37900.0,37899.0,0.02126639]
[1610072298304,3.76562608,37900.0,37898.0,0.11785]
[1610072298305,0.13632608,37900.0,37860.0,0.04669038]
[1610072299609,4.3422,37906.0,37862.0,0.13632608]
[1610072299810,4.3422,37906.0,37862.0,0.12821]
[1610072300409,0.08519769,37905.0,37862.0,0.12821]
[1610072300810,0.00669805,37903.0,37862.0,0.12821]
[1610072301611,0.13632608,37863.0,37862.0,0.12821]
[1610072303012,0.08591391,37901.0,37862.0,0.12821]
[1610072303213,0.0792,37901.0,37862.0,0.12821]
[1610072303415,0.0067273,37902.0,37862.0,0.12821]
[1610072303613,0.4744,37900.0,37862.0,0.12821]
[1610072304615,0.48112403,37900.0,37862.0,0.12821]
[1610072304814,0.0789,37899.0,37838.0,4.3144]
[1610072305016,0.0789,37899.0,37836.0,0.2822]
[1610072305017,0.10030826,37897.0,37836.0,0.2822]
[1610072305215,4.1226,37873.0,37836.0,0.2822]
[1610072306620,4.1226,37873.0,37796.0,3.252]
[1610072306819,0.00669805,37886.0,37797.0,0.2814]
[1610072307019,4.0228,37854.0,37797.0,0.5613]
[1610072307621,4.0228,37854.0,37814.0,0.13632608]
[1610072307819,4.0228,37854.0,37814.0,0.23712608]
[1610072308019,4.0228,37854.0,37814.0,0.1008]
[1610072308221,4.0228,37854.0,37815.0,0.02128542]
[1610072308921,0.0792,37853.0,37815.0,0.02128542]
[1610072309720,0.13632608,37816.0,37815.0,0.02128542]
[1610072310123,4.47632608,37816.0,37815.0,0.02128542]
[1610072310923,4.55632608,37816.0,37815.0,0.02128542]
[1610072311525,4.55632608,37816.0,37814.0,0.1008]
[1610072311725,4.55632608,37816.0,37814.0,0.0494]
[1610072311925,0.21632608,37816.0,37769.0,0.2977]
[1610072312124,0.21632608,37816.0,37763.0,0.04677831]
[1610072312125,4.2382,37765.0,37763.0,0.04677831]
[1610072312324,1.5,37802.0,37763.0,0.04677831]
[1610072312526,1.5,37802.0,37770.0,0.00026515]
[1610072312727,3.4601,37781.0,37764.0,0.01879244]
[1610072312926,3.4601,37781.0,37771.0,0.00026513]
[1610072313125,3.4601,37781.0,37771.0,0.08379513]
[1610072313325,0.01952872,37808.0,37771.0,0.08353]
[1610072313525,0.00269805,37807.0,37771.0,0.08353]
[1610072313726,0.00268716,37808.0,37777.0,0.13632608]
[1610072313925,0.00268716,37808.0,37771.0,0.08353]
[1610072314126,0.00268579,37807.0,37771.0,0.08353]
[1610072314329,0.00268579,37807.0,37772.0,0.00026517]
[1610072314526,0.0784,37807.0,37772.0,0.00026517]
[1610072314727,0.16874,37807.0,37772.0,0.00026517]
[1610072314926,3.6465,37783.0,37772.0,0.00026517]
[1610072315126,3.6465,37783.0,37771.0,0.08353]
[1610072315329,3.6465,37783.0,37771.0,0.08326483]
[1610072315729,0.75682608,37772.0,37771.0,0.08326483]
[1610072317934,0.75682608,37772.0,37771.0,0.00426483]
[1610072318132,0.75682608,37772.0,37771.0,6.483e-05]
[1610072318332,0.75682608,37772.0,37763.0,0.04093483]
[1610072318532,0.75682608,37772.0,37734.0,0.2842]
[1610072318732,0.83662608,37772.0,37734.0,0.2842]
[1610072318932,0.75682608,37772.0,37734.0,0.2842]
[1610072319734,0.13632608,37755.0,37734.0,0.2842]
[1610072321538,4.445,37742.0,37734.0,0.2842]
[1610072321741,0.13632608,37735.0,37734.0,0.2842]
[1610072321938,3.94992608,37735.0,37734.0,0.2842]
[1610072323637,3.94992608,37735.0,37681.0,0.13632608]
[1610072323837,0.13632608,37735.0,37681.0,0.13632608]
[1610072324041,4.1798,37710.0,37681.0,0.13632608]
[1610072324638,0.08487,37734.0,37639.0,0.279]
[1610072324838,0.08487,37734.0,37704.0,0.12284]
[1610072325039,3.2439,37711.0,37704.0,0.12284]
[1610072325239,0.08487,37734.0,37704.0,0.12284]
[1610072325641,0.13632608,37710.0,37704.0,0.12284]
[1610072327041,0.12993,37743.0,37704.0,0.12284]
[1610072327240,4.03373,37743.0,37704.0,0.12284]
[1610072327639,0.43543225,37782.0,37704.0,0.12284]
[1610072327640,0.13632608,37736.0,37729.0,0.13632608]
[1610072327839,0.13632608,37736.0,37704.0,0.12284]
[1610072328440,0.00617725,37791.0,37704.0,0.12284]
[1610072329040,3.77306949,37793.0,37704.0,0.12284]
[1610072329642,3.7669,37793.0,37737.0,0.13632608]
[1610072329842,3.7669,37793.0,37737.0,0.23454608]
[1610072330544,0.0061742,37801.0,37737.0,0.23292366]
[1610072330746,0.00617992,37803.0,37737.0,0.23292366]
[1610072331144,0.00619026,37808.0,37737.0,0.23292366]
[1610072331544,0.53418314,37815.0,37737.0,0.23292366]
[1610072331545,0.00619803,37814.0,37737.0,0.23292366]
[1610072331745,0.13632608,37779.0,37778.0,0.13632608]
[1610072332149,0.0796,37813.0,37778.0,0.13632608]
[1610072332348,0.16310992,37818.0,37778.0,0.08734]
[1610072332545,0.1569,37818.0,37778.0,0.08734]
[1610072332748,0.1569,37818.0,37778.0,0.13567]
[1610072332948,0.1569,37818.0,37778.0,0.04833]
[1610072333148,0.1569,37818.0,37737.0,0.09822]
[1610072333149,0.1569,37818.0,37754.0,3.6723]
[1610072333749,0.1569,37818.0,37738.0,0.2917]
[1610072333750,0.13632608,37796.0,37779.0,0.13632608]
[1610072335151,3.9108,37813.0,37779.0,0.13632608]
[1610072335351,3.8313,37813.0,37779.0,0.26103608]
[1610072335752,0.13632608,37798.0,37785.0,0.13632608]
[1610072336753,0.13632608,37798.0,37786.0,0.00026525]
[1610072336954,3.8313,37813.0,37786.0,0.00026525]